fUSD/lending_fUSD_20240919
["ID","MTS","AMOUNT","RATE_DAILY","PERIOD"]
[338543231,1726726265526,-500.0,0.00013989,2]
[338543232,1726726265536,-1603.04,0.00013989,2]
[338543233,1726726265547,-500.0,0.00013989,2]
[338543234,1726726265558,-509.88,0.00013989,2]
[338543235,1726726265568,-869.39,0.00013989,2]
[338543236,1726726265578,-500.0,0.00013989,2]
[338543237,1726726265588,-500.0,0.00013989,2]
[338543238,1726726265599,-1537.55,0.00013989,2]
[338543239,1726726265610,-872.94,0.00013989,2]
[338543240,1726726265620,-500.0,0.00013989,2]
[338543241,1726726265630,-721.03,0.00013989,2]
[338543242,1726726265640,-1632.1,0.00013989,2]
[338543243,1726726265651,-500.0,0.00013989,2]
[338543244,1726726265661,-624.03,0.00013989,2]
[338543245,1726726265671,-500.0,0.00013989,2]
[338543246,1726726265680,-151.0,0.00013989,2]
[338543247,1726726265691,-500.0,0.00013989,2]
[338543248,1726726265701,-823.62,0.00013989,2]
[338543249,1726726265711,-500.0,0.00013989,2]
[338543250,1726726265721,-500.0,0.00013989,2]
[338543251,1726726265730,-500.0,0.00013989,2]
[338543252,1726726265741,-1347.1,0.00013989,2]
[338543253,1726726265750,-500.0,0.00013989,2]
[338543254,1726726265761,-1061.37,0.00013989,2]
[338543255,1726726265772,-915.08,0.00013989,2]
[338543256,1726726265782,-500.0,0.00013989,2]
[338543257,1726726265792,-109.77798322,0.00013989,2]
[338543258,1726726265806,-390.22201678,0.00013989,2]
[338543259,1726726265816,-500.0,0.00013989,2]
[338543260,1726726265827,-1882.9,0.00013989,2]
[338543261,1726726265837,-500.0,0.00013989,2]
[338543262,1726726265847,-500.0,0.00013989,2]
[338543263,1726726265857,-500.0,0.00013989,2]
[338543264,1726726265868,-629.21,0.00013989,2]
[338543265,1726726265878,-570.22,0.00013989,2]
[338543266,1726726265888,-1302.03,0.00013989,2]
[338543267,1726726265898,-500.0,0.00013989,2]
[338543268,1726726265908,-500.0,0.00013989,2]
[338543269,1726726265918,-500.0,0.00013989,2]
[338543270,1726726265928,-1111.24,0.00013989,2]
[338543271,1726726265939,-1004.44,0.00013989,2]
[338543272,1726726265949,-500.0,0.00013989,2]
[338543273,1726726265959,-1249.44,0.00013989,2]
[338543274,1726726265969,-1668.61,0.00013989,2]
[338543275,1726726265979,-500.0,0.00013989,2]
[338543276,1726726265989,-500.0,0.00013989,2]
[338543277,1726726265999,-500.0,0.00013989,2]
[338543278,1726726266010,-1484.77,0.00013989,2]
[338543279,1726726266020,-1349.5,0.00013989,2]
[338543280,1726726266030,-500.0,0.00013989,2]
[338543281,1726726266040,-500.06,0.00013989,2]
[338543282,1726726266051,-640.31,0.00013989,2]
[338543283,1726726266061,-1765.5,0.00013989,2]
[338543284,1726726266072,-852.28,0.00013989,2]
[338543285,1726726266082,-671.43,0.00013989,2]
[338543286,1726726266093,-1741.55,0.00013989,2]
[338543287,1726726266106,-500.0,0.00013989,2]
[338543288,1726726266118,-519.69,0.00013989,2]
[338543289,1726726266129,-802.29,0.00013989,2]
[338543290,1726726266139,-500.0,0.00013989,2]
[338543291,1726726266151,-500.0,0.00013989,2]
[338543292,1726726266161,-1105.83,0.00013989,2]
[338543293,1726726266172,-868.76,0.00013989,2]
[338543294,1726726266185,-500.0,0.00013989,2]
[338543295,1726726266197,-511.05,0.00013989,2]
[338543296,1726726266208,-1741.26,0.00013989,2]
[338543297,1726726266219,-500.0,0.00013989,2]
[338543298,1726726266231,-500.0,0.00013989,2]
[338543299,1726726266242,-1797.8,0.00013989,2]
[338543300,1726726266252,-500.0,0.00013989,2]
[338543301,1726726266263,-1021.57,0.00013989,2]
[338543302,1726726266274,-1011.08,0.00013989,2]
[338543303,1726726266285,-621.3,0.00013989,2]
[338543304,1726726266298,-500.0,0.00013989,2]
[338543305,1726726266309,-514.67,0.00013989,2]
[338543306,1726726266319,-500.0,0.00013989,2]
[338543307,1726726266332,-500.0,0.00013989,2]
[338543308,1726726266344,-1994.54,0.00013989,2]
[338543309,1726726266355,-2727.27,0.00013989,2]
[338543310,1726726266373,-888.01,0.00013989,2]
[338543311,1726726266384,-500.0,0.00013989,2]
[338543312,1726726266395,-583.36,0.00013989,2]
[338543313,1726726266405,-972.0,0.00013989,2]
[338543314,1726726266416,-500.0,0.00013989,2]
[338543315,1726726266427,-1153.94,0.00013989,2]
[338543316,1726726266438,-500.0,0.00013989,2]
[338543317,1726726266448,-2844.2,0.00013989,2]
[338543318,1726726266458,-1137.49,0.00013989,2]
[338543319,1726726266469,-612.93,0.00013989,2]
[338543320,1726726266479,-1311.45,0.00013989,2]
[338543321,1726726266490,-1309.73,0.00013989,2]
[338543322,1726726266500,-1373.59,0.00013989,2]
[338543323,1726726266511,-648.83,0.00013989,2]
[338543324,1726726266522,-500.0,0.00013989,2]
[338543325,1726726266532,-2185.77,0.00013989,2]
[338543326,1726726266544,-745.47,0.00013989,2]
[338543327,1726726266557,-2526.57,0.00013989,2]
[338543328,1726726266568,-780.4,0.00013989,2]
[338543329,1726726266580,-703.21,0.00013989,2]
[338543330,1726726266591,-2352.46,0.00013989,2]
[338543331,1726726266602,-617.37,0.00013989,2]
[338543332,1726726266618,-500.0,0.00013989,2]
[338543333,1726726266630,-758.69,0.00013989,2]
[338543334,1726726266640,-727.40909209,0.00013989,2]
[338543335,1726726266655,-253.31090791,0.00013989,2]
[338543336,1726726266666,-1192.44,0.00013989,2]
[338543337,1726726266677,-63.33930872,0.00013989,2]
[338543338,1726726266690,-486.18500001,0.00013989,2]
[338543339,1726726266704,-57.25569127,0.00013989,2]
[338543340,1726726266715,-1532.45,0.00013989,2]
[338543341,1726726266728,-500.0,0.00013989,2]
[338543342,1726726266740,-500.0,0.00013989,2]
[338543343,1726726266751,-500.0,0.00013989,2]
[338543344,1726726266763,-568.98,0.00013989,2]
[338543345,1726726266776,-671.48,0.00013989,2]
[338543346,1726726266789,-570.68,0.00013989,2]
[338543347,1726726266800,-500.0,0.00013989,2]
[338543348,1726726266812,-500.0,0.00013989,2]
[338543349,1726726266823,-500.0,0.00013989,2]
[338543350,1726726266834,-500.0,0.00013989,2]
[338543351,1726726266845,-739.77,0.00013989,2]
[338543352,1726726266856,-500.0,0.00013989,2]
[338543353,1726726266869,-1868.37,0.00013989,2]
[338543354,1726726266880,-500.0,0.00013989,2]
[338543355,1726726266892,-750.04,0.00013989,2]
[338543356,1726726266902,-5637.23294323,0.00013989,2]
[338543357,1726726266916,-367.69336575,0.00013989,2]
[338543358,1726726266928,-2927.37522779,0.00013989,2]
[338543359,1726726266942,-448.95942964,0.00013989,2]
[338543360,1726726266955,-4791.17830158,0.00013989,2]
[338543361,1726726266968,-913.19073201,0.00013989,2]
[338543362,1726726266978,-5.15804059,0.00013989,2]
[338543363,1726726266991,-494.84195941,0.00013989,2]
[338543364,1726726267002,-500.0,0.00013989,2]
[338543365,1726726267014,-154.23032631,0.00013989,2]
[338543366,1726726267027,-833.87987711,0.00013989,2]
[338543367,1726726267040,-1128.06641355,0.00013989,2]
[338543368,1726726267054,-912.45,0.00013989,2]
[338543369,1726726267067,-337.45338303,0.00013989,2]
[338543370,1726726267078,-1209.7,0.00013989,2]
[338543371,1726726267089,-12.29830405,0.00013989,2]
[338543372,1726726267106,-273.88727203,0.00013989,2]
[338543373,1726726268206,-679.0,0.00013047,2]
[338543374,1726726268216,-700.751278,0.00013167,2]
[338543375,1726726268225,-293.79288066,0.0001344,2]
[338543376,1726726268236,-316.08377848,0.0001344,2]
[338543377,1726726268247,-90.87461886,0.0001344,2]
[338543378,1726726268257,-700.751278,0.00013441,2]
[338543379,1726726268267,-700.751278,0.00013714,2]
[338543380,1726726268277,-2.44319599,0.00013715,2]
[338543381,1726726268289,-698.30808201,0.00013715,2]
[338543382,1726726268299,-700.751278,0.000138,2]
[338543383,1726726268308,-700.751278,0.00013988,2]
[338543384,1726726268318,-213.81442392,0.00013989,2]
[338543385,1726726268327,-500.0,0.00013989,2]
[338543386,1726726268336,-1242.69,0.00013989,2]
[338543387,1726726268346,-521.27,0.00013989,2]
[338543388,1726726268356,-500.0,0.00013989,2]
[338543389,1726726268369,-560.16770837,0.00013989,2]
[338543390,1726726268378,-500.0,0.00013989,2]
[338543391,1726726268387,-284.9269036,0.00013989,2]
[338543392,1726726268396,-1446.6,0.00013989,2]
[338543393,1726726268406,-755.19,0.00013989,2]
[338543394,1726726268415,-500.0,0.00013989,2]
[338543395,1726726268424,-500.0,0.00013989,2]
[338543396,1726726268433,-28544.16315273,0.00013989,2]
[338543397,1726726268445,-387.7317709,0.00013989,2]
[338543398,1726726268528,-361.43277495,0.00013989,2]
[338543399,1726726268539,-900.09,0.00013989,2]
[338543400,1726726268550,-2654.94895016,0.00013989,2]
[338543401,1726726268561,-509.91335126,0.00013989,2]
[338543402,1726726268571,-169.64449121,0.00013989,2]
[338543403,1726726268583,-1346.35809449,0.00013989,2]
[338543404,1726726268595,-139.0774143,0.00013989,2]
[338543405,1726726268605,-672.35,0.00013989,2]
[338543406,1726726268618,-500.0,0.00013989,2]
[338543407,1726726268627,-500.0,0.00013989,2]
[338543408,1726726268637,-500.0,0.00013989,2]
[338543409,1726726268646,-2410.84,0.00013989,2]
[338543410,1726726268655,-500.0,0.00013989,2]
[338543411,1726726268665,-789.21,0.00013989,2]
[338543412,1726726268675,-500.0,0.00013989,2]
[338543413,1726726268685,-1516.15901021,0.00013989,2]
[338543414,1726726268699,-998.30885508,0.00013989,2]
[338543415,1726726268712,-356.88365472,0.00013989,2]
[338543416,1726726268723,-467.5696332,0.00013989,2]
[338543417,1726726268736,-272.10884679,0.00013989,2]
[338543418,1726726268747,-359.26653938,0.00013989,2]
[338543419,1726726268758,-600.09346062,0.00013989,2]
[338543420,1726726268768,-208.87793545,0.00013989,2]
[338543421,1726726268779,-291.12206455,0.00013989,2]
[338543422,1726726268788,-1600.25,0.00013989,2]
[338543423,1726726268798,-500.0,0.00013989,2]
[338543424,1726726268807,-880.72,0.00013989,2]
[338543425,1726726268816,-583.52,0.00013989,2]
[338543426,1726726268826,-2984.99,0.00013989,2]
[338543427,1726726268835,-500.0,0.00013989,2]
[338543428,1726726268846,-4554.46,0.00013989,2]
[338543429,1726726268855,-500.0,0.00013989,2]
[338543430,1726726268866,-1342.15,0.00013989,2]
[338543431,1726726268875,-558.56,0.00013989,2]
[338543432,1726726268884,-2868.83,0.00013989,2]
[338543433,1726726268894,-3490.59,0.00013989,2]
[338543434,1726726268903,-960.58,0.00013989,2]
[338543435,1726726268913,-500.0,0.00013989,2]
[338543436,1726726268922,-1259.38,0.00013989,2]
[338543437,1726726268931,-500.0,0.00013989,2]
[338543438,1726726268941,-951.69,0.00013989,2]
[338543439,1726726268950,-500.0,0.00013989,2]
[338543440,1726726268961,-561.86,0.00013989,2]
[338543441,1726726268971,-8000.47,0.00013989,2]
[338543442,1726726268981,-828.93,0.00013989,2]
[338543443,1726726268991,-876.65,0.00013989,2]
[338543444,1726726269003,-4940.81,0.00013989,2]
[338543445,1726726269013,-500.0,0.00013989,2]
[338543446,1726726269025,-183.53096752,0.00013989,2]
[338543447,1726726269036,-875.12,0.00013989,2]
[338543448,1726726269046,-1531.27,0.00013989,2]
[338543449,1726726269057,-1045.53,0.00013989,2]
[338543450,1726726269066,-4934.78,0.00013989,2]
[338543451,1726726269077,-1968.35,0.00013989,2]
[338543452,1726726269087,-203.19800169,0.00013989,2]
[338543453,1726726269101,-296.80199831,0.00013989,2]
[338543454,1726726269114,-500.0,0.00013989,2]
[338543455,1726726269124,-527.69,0.00013989,2]
[338543456,1726726269134,-818.34,0.00013989,2]
[338543457,1726726269143,-500.0,0.00013989,2]
[338543458,1726726269153,-764.80088988,0.00013989,2]
[338543459,1726726269166,-550.21150002,0.00013989,2]
[338543460,1726726269177,-1726.3576101,0.00013989,2]
[338543461,1726726269188,-62.27839358,0.00013989,2]
[338543462,1726726269200,-571.25160642,0.00013989,2]
[338543463,1726726269210,-1306.46,0.00013989,2]
[338543464,1726726269219,-1198.92248274,0.00013989,2]
[338543465,1726726269231,-498.60751726,0.00013989,2]
[338543466,1726726269241,-500.0,0.00013989,2]
[338543467,1726726269251,-2855.41,0.00013989,2]
[338543468,1726726269261,-500.0,0.00013989,2]
[338543469,1726726269271,-1051.76,0.00013989,2]
[338543470,1726726269281,-1066.5,0.00013989,2]
[338543471,1726726269290,-1339.52,0.00013989,2]
[338543472,1726726269300,-2356.18,0.00013989,2]
[338543473,1726726269310,-1114.37568213,0.00013989,2]
[338543474,1726726269321,-650.68431787,0.00013989,2]
[338543475,1726726269330,-506.17,0.00013989,2]
[338543476,1726726269341,-1423.16,0.00013989,2]
[338543477,1726726269350,-306.73568013,0.00013989,2]
[338543478,1726726269362,-516.74431987,0.00013989,2]
[338543479,1726726269371,-500.0,0.00013989,2]
[338543480,1726726269380,-946.52,0.00013989,2]
[338543481,1726726269389,-150.44,0.00013989,2]
[338543482,1726726269399,-2012.58,0.00013989,2]
[338543483,1726726269408,-500.0,0.00013989,2]
[338543484,1726726269418,-673.3,0.00013989,2]
[338543485,1726726269427,-500.0,0.00013989,2]
[338543486,1726726269437,-500.0,0.00013989,2]
[338543487,1726726269446,-2978.69,0.00013989,2]
[338543488,1726726269456,-693.84,0.00013989,2]
[338543489,1726726269466,-633.05,0.00013989,2]
[338543490,1726726269475,-1806.23,0.00013989,2]
[338543491,1726726269485,-1203.55,0.00013989,2]
[338543492,1726726269495,-878.4,0.00013989,2]
[338543493,1726726269504,-518.32,0.00013989,2]
[338543494,1726726269514,-3072.66,0.00013989,2]
[338543495,1726726269525,-1000.0,0.00013989,2]
[338543496,1726726269542,-579.58,0.00013989,2]
[338543497,1726726269563,-1413.6,0.00013989,2]
[338543498,1726726269582,-652.59,0.00013989,2]
[338543499,1726726269601,-1726.39,0.00013989,2]
[338543500,1726726269627,-500.0,0.00013989,2]
[338543501,1726726269646,-501.17,0.00013989,2]
[338543502,1726726269666,-1146.17,0.00013989,2]
[338543503,1726726269682,-1791.58,0.00013989,2]
[338543504,1726726269692,-2194.34,0.00013989,2]
[338543505,1726726269703,-1031.8,0.00013989,2]
[338543506,1726726269712,-1020.12,0.00013989,2]
[338543507,1726726269722,-859.05,0.00013989,2]
[338543508,1726726269732,-1311.15,0.0001399,2]
[338543509,1726726269743,-1025.01,0.0001399,2]
[338543510,1726726269754,-500.0,0.0001399,2]
[338543511,1726726269765,-1155.69,0.0001399,2]
[338543512,1726726269774,-999.15,0.0001399,2]
[338543513,1726726269784,-500.0,0.0001399,2]
[338543514,1726726269794,-500.0,0.0001399,2]
[338543515,1726726269804,-1678.98,0.0001399,2]
[338543516,1726726269813,-500.0,0.0001399,2]
[338543517,1726726269824,-629.03,0.0001399,2]
[338543518,1726726269833,-500.0,0.0001399,2]
[338543519,1726726269843,-1299.53,0.0001399,2]
[338543520,1726726269853,-897.93,0.0001399,2]
[338543521,1726726269866,-500.0,0.0001399,2]
[338543522,1726726269875,-1690.14,0.0001399,2]
[338543523,1726726269884,-625.51,0.0001399,2]
[338543524,1726726269893,-500.0,0.0001399,2]
[338543525,1726726269902,-1431.49,0.0001399,2]
[338543526,1726726269913,-559.2,0.0001399,2]
[338543527,1726726269923,-500.0,0.0001399,2]
[338543528,1726726269932,-500.0,0.0001399,2]
[338543529,1726726269942,-500.0,0.0001399,2]
[338543530,1726726269951,-500.0,0.0001399,2]
[338543531,1726726269961,-797.44,0.0001399,2]
[338543532,1726726269971,-887.76,0.0001399,2]
[338543533,1726726269980,-711.73,0.0001399,2]
[338543534,1726726269989,-309.51209616,0.0001399,2]
[338543535,1726726269998,-577.66,0.0001399,2]
[338543536,1726726270008,-500.97,0.0001399,2]
[338543537,1726726270017,-500.0,0.0001399,2]
[338543538,1726726270027,-581.11,0.0001399,2]
[338543539,1726726270037,-1206.87,0.0001399,2]
[338543540,1726726270046,-623.23,0.0001399,2]
[338543541,1726726270055,-685.27,0.0001399,2]
[338543542,1726726270064,-1068.24,0.0001399,2]
[338543543,1726726270073,-959.9,0.0001399,2]
[338543544,1726726270083,-708.41,0.0001399,2]
[338543545,1726726270093,-500.0,0.0001399,2]
[338543546,1726726270104,-527.3,0.0001399,2]
[338543547,1726726270119,-500.0,0.0001399,2]
[338543548,1726726270134,-500.0,0.0001399,2]
[338543549,1726726270144,-539.51008841,0.0001399,2]
[338543550,1726726270154,-500.0,0.0001399,2]
[338543551,1726726270164,-1428.06,0.0001399,2]
[338543552,1726726270173,-500.0,0.0001399,2]
[338543553,1726726270185,-500.0,0.0001399,2]
[338543554,1726726270194,-500.0,0.0001399,2]
[338543555,1726726270204,-684.88,0.0001399,2]
[338543556,1726726270214,-513.79,0.0001399,2]
[338543557,1726726270223,-1390.29,0.0001399,2]
[338543558,1726726270233,-500.0,0.0001399,2]
[338543559,1726726270243,-500.0,0.0001399,2]
[338543560,1726726270252,-500.0,0.0001399,2]
[338543561,1726726270262,-500.0,0.0001399,2]
[338543562,1726726270271,-1280.76,0.0001399,2]
[338543563,1726726270281,-517.94,0.0001399,2]
[338543564,1726726270291,-500.0,0.0001399,2]
[338543565,1726726270300,-324.79073865,0.0001399,2]
[338543566,1726726270310,-1027.37,0.0001399,2]
[338543567,1726726270320,-1105.03,0.0001399,2]
[338543568,1726726270329,-583.41,0.0001399,2]
[338543569,1726726270340,-500.0,0.0001399,2]
[338543570,1726726270350,-500.0,0.0001399,2]
[338543571,1726726270360,-641.74,0.0001399,2]
[338543572,1726726270373,-584.79,0.0001399,2]
[338543573,1726726270382,-500.0,0.0001399,2]
[338543574,1726726270392,-272.82841371,0.0001399,2]
[338543575,1726726270401,-500.0,0.0001399,2]
[338543576,1726726270410,-1531.72,0.0001399,2]
[338543577,1726726270420,-500.0,0.0001399,2]
[338543578,1726726270429,-617.17,0.0001399,2]
[338543579,1726726270439,-610.62,0.0001399,2]
[338543580,1726726270448,-500.0,0.0001399,2]
[338543581,1726726270457,-1930.85,0.0001399,2]
[338543582,1726726270467,-859.98,0.0001399,2]
[338543583,1726726270476,-676.16,0.0001399,2]
[338543584,1726726270487,-808.39,0.0001399,2]
[338543585,1726726270497,-1043.04,0.0001399,2]
[338543586,1726726270506,-732.6,0.0001399,2]
[338543587,1726726270516,-500.0,0.0001399,2]
[338543588,1726726270526,-526.12,0.0001399,2]
[338543589,1726726270536,-988.89,0.0001399,2]
[338543590,1726726270547,-249.675615,0.0001399,2]
[338543591,1726726270557,-1108.54,0.0001399,2]
[338543592,1726726270567,-1072.8,0.0001399,2]
[338543593,1726726270576,-1140.61,0.0001399,2]
[338543594,1726726270587,-500.0,0.0001399,2]
[338543595,1726726270598,-664.19,0.0001399,2]
[338543596,1726726270608,-1101.06,0.0001399,2]
[338543597,1726726270619,-500.0,0.0001399,2]
[338543598,1726726270628,-500.0,0.0001399,2]
[338543599,1726726270637,-934.84,0.0001399,2]
[338543600,1726726270646,-966.26,0.0001399,2]
[338543601,1726726270655,-1172.45,0.0001399,2]
[338543602,1726726270664,-881.73,0.0001399,2]
[338543603,1726726270673,-1961.74,0.0001399,2]
[338543604,1726726270682,-901.42,0.0001399,2]
[338543605,1726726270691,-500.0,0.0001399,2]
[338543606,1726726270700,-1876.29,0.0001399,2]
[338543607,1726726270709,-319.39671526,0.0001399,2]
[338543608,1726726270722,-180.60328474,0.0001399,2]
[338543609,1726726270731,-269.39671526,0.0001399,2]
[338543610,1726726270742,-612.64328474,0.0001399,2]
[338543611,1726726270754,-286.35193914,0.0001399,2]
[338543612,1726726270766,-213.64806086,0.0001399,2]
[338543613,1726726270777,-108.15193914,0.0001399,2]
[338543614,1726726270792,-391.84806086,0.0001399,2]
[338543615,1726726270803,-519.1,0.0001399,2]
[338543616,1726726270814,-1138.27,0.0001399,2]
[338543617,1726726270824,-500.0,0.0001399,2]
[338543618,1726726270834,-500.0,0.0001399,2]
[338543619,1726726270844,-2184.95,0.0001399,2]
[338543620,1726726270853,-732.38951375,0.0001399,2]
[338543621,1726726270864,-283.51720375,0.0001399,2]
[338543622,1726726270875,-247.2432825,0.0001399,2]
[338543623,1726726270884,-171.60625317,0.0001399,2]
[338543624,1726726270940,-328.39374683,0.0001399,2]
[338543625,1726726270950,-527.14,0.0001399,2]
[338543626,1726726270959,-711.28,0.0001399,2]
[338543627,1726726270968,-500.0,0.0001399,2]
[338543628,1726726270977,-1604.39157697,0.0001399,2]
[338543629,1726726270988,-280.64842303,0.0001399,2]
[338543630,1726726270997,-500.0,0.0001399,2]
[338543631,1726726271006,-441.93300174,0.0001399,2]
[338543632,1726726271046,-58.06699826,0.0001399,2]
[338543633,1726726271055,-1029.76,0.0001399,2]
[338543634,1726726271065,-569.29,0.0001399,2]
[338543635,1726726271074,-500.0,0.0001399,2]
[338543636,1726726271084,-500.0,0.0001399,2]
[338543637,1726726271093,-658.37,0.0001399,2]
[338543638,1726726271104,-285.28868741,0.0001399,2]
[338543639,1726726271118,-277.38,0.0001399,2]
[338543640,1726726271129,-605.52534973,0.0001399,2]
[338543641,1726726271140,-1096.55504991,0.0001399,2]
[338543642,1726726271152,-1446.37091295,0.0001399,2]
[338543643,1726726271161,-562.76064752,0.0001399,2]
[338543644,1726726370803,250.0,0.00012558,2]
[338543646,1726726539808,190.44,0.00012431,2]
[338543647,1726726574268,537.23,0.00012399,2]
[338543648,1726726598548,1050.0,0.00011,2]
[338543649,1726726674563,366.66,0.00010423,2]
[338543650,1726726674978,366.66,0.00012687,2]
[338543651,1726726799302,201.04,0.00010959,2]
[338543652,1726726815620,600.0,0.00012311,2]
[338543653,1726726817737,16782.82,0.00012311,2]
[338543654,1726726856847,250.0,0.00012283,2]
[338543655,1726726941724,307.5,0.00012218,2]
[338543694,1726727163722,329.99,0.00010203,2]
[338543695,1726727164056,329.99,0.00012467,2]
[338543712,1726727306338,520.0,0.000122,2]
[338543717,1726727325510,158.36,0.00010959,2]
[338543731,1726727432147,-332.75527609,0.00012791,2]
[338543736,1726727432271,-1231.85132041,0.00012791,2]
[338543737,1726727432283,-311.84172578,0.00012791,2]
[338543738,1726727432294,-833.36001832,0.00012791,2]
[338543739,1726727432305,-796.89416303,0.00012791,2]
[338543740,1726727432316,-4991.13567522,0.00012791,2]
[338543741,1726727432327,-196.71634119,0.00012791,2]
[338543742,1726727432336,-150.0,0.00012791,2]
[338543743,1726727432346,-224.80481379,0.00012792,2]
[338543744,1726727432361,-109.71035046,0.00012792,2]
[338543745,1726727432371,-1302.419,0.00012792,2]
[338543746,1726727432380,-2967.996,0.00012792,2]
[338543747,1726727432390,-1560.0905,0.00012792,2]
[338543748,1726727432400,-339.7032,0.00012792,2]
[338543749,1726727432413,-595.6409,0.00012792,2]
[338543750,1726727432423,-1357.063,0.00012792,2]
[338543751,1726727432433,-1191.37505736,0.00012792,2]
[338543752,1726727432444,-13136.49674264,0.00012792,2]
[338543753,1726727432455,-1000.0,0.00012792,2]
[338543754,1726727432464,-26701.1524,0.00012793,2]
[338543755,1726727432473,-1000.0,0.00012793,2]
[338543756,1726727432482,-1123.4572,0.00012793,2]
[338543757,1726727432491,-11061.27792029,0.0001288,2]
[338543759,1726727432501,-152.12,0.00012883,2]
[338543761,1726727432511,-3336.05,0.0001289,2]
[338543763,1726727432521,-826.61,0.0001289,2]
[338543765,1726727432530,-1586.28,0.0001289,2]
[338543767,1726727432539,-3405.29,0.0001289,2]
[338543770,1726727432548,-2137.06,0.0001289,2]
[338543772,1726727432557,-7632.49,0.0001289,2]
[338543773,1726727432567,-500.0,0.0001289,2]
[338543774,1726727432576,-4994.04,0.0001289,2]
[338543775,1726727432585,-1067.12,0.0001289,2]
[338543776,1726727432594,-1311.38,0.0001289,2]
[338543777,1726727432605,-2117.0,0.0001289,2]
[338543778,1726727432614,-500.0,0.0001289,2]
[338543779,1726727432623,-500.0,0.0001289,2]
[338543780,1726727432631,-1980.79,0.0001289,2]
[338543781,1726727432641,-686.06,0.0001289,2]
[338543782,1726727432650,-589.76,0.0001289,2]
[338543783,1726727432659,-500.0,0.0001289,2]
[338543784,1726727432668,-500.0,0.00012891,2]
[338543785,1726727432678,-772.86,0.00012891,2]
[338543786,1726727432687,-1001.65,0.00012891,2]
[338543787,1726727432697,-500.0,0.00012891,2]
[338543788,1726727432706,-2062.54,0.00012891,2]
[338543789,1726727432715,-500.0,0.00012891,2]
[338543790,1726727432725,-1711.28,0.00012891,2]
[338543791,1726727432734,-614.06,0.00012891,2]
[338543792,1726727432743,-502.38,0.00012891,2]
[338543793,1726727432752,-1717.26,0.00012891,2]
[338543794,1726727432768,-500.0,0.00012891,2]
[338543795,1726727432777,-1219.67,0.00012891,2]
[338543796,1726727432786,-2791.67,0.00012891,2]
[338543797,1726727432795,-500.0,0.00012891,2]
[338543798,1726727432805,-1110.52,0.00012891,2]
[338543799,1726727432813,-588.45,0.00012891,2]
[338543800,1726727432823,-1429.18,0.00012891,2]
[338543801,1726727432832,-500.0,0.00012891,2]
[338543802,1726727432841,-500.0,0.00012891,2]
[338543803,1726727432850,-750.35,0.00012891,2]
[338543804,1726727432859,-1269.07,0.00012891,2]
[338543805,1726727432868,-347.25,0.00012891,2]
[338543806,1726727432877,-1217.22,0.00012891,2]
[338543807,1726727432886,-500.0,0.00012891,2]
[338543808,1726727432895,-326.27091771,0.00012891,2]
[338543809,1726727432911,-173.72908229,0.00012891,2]
[338543810,1726727432920,-500.0,0.00012891,2]
[338543811,1726727432929,-354.59,0.00012891,2]
[338543812,1726727432938,-879.73,0.00012891,2]
[338543813,1726727432947,-500.0,0.00012891,2]
[338543814,1726727432956,-1068.35,0.00012891,2]